[Event "Late-Titled-Tuesday-Blitz-September-26-2023"]
[Site "Chess.com"]
[Date "2023.09.26"]
[Round "6"]
[White "roxannyzoldyck"]
[Black "Colombiano07"]
[Result "1-0"]
[WhiteElo "2207"]
[BlackElo "2368"]
[TimeControl "180+1"]
[EndTime "15:02:40 PDT"]
[Termination "roxannyzoldyck won by resignation"]

1. e4 {[%clk 0:02:57.6]} 1... c6 {[%clk 0:03:00]} 2. d4 {[%clk 0:02:55]} 2... d5
{[%clk 0:03:00.9]} 3. Nc3 {[%clk 0:02:55.3]} 3... dxe4 {[%clk 0:03:01.1]} 4.
Nxe4 {[%clk 0:02:56.2]} 4... Bf5 {[%clk 0:03:01.6]} 5. Ng3 {[%clk 0:02:56.7]}
5... Bg6 {[%clk 0:03:02.2]} 6. N1e2 {[%clk 0:02:57.3]} 6... Nf6 {[%clk
0:02:59.8]} 7. Nf4 {[%clk 0:02:57.2]} 7... e5 {[%clk 0:02:59.9]} 8. dxe5 {[%clk
0:02:51.9]} 8... Qxd1+ {[%clk 0:03:00.8]} 9. Kxd1 {[%clk 0:02:52.7]} 9... Ng4
{[%clk 0:03:01.5]} 10. Be3 {[%clk 0:02:43]} 10... Nxe3+ {[%clk 0:02:57.2]} 11.
fxe3 {[%clk 0:02:43.9]} 11... Nd7 {[%clk 0:02:53.9]} 12. h4 {[%clk 0:02:33.3]}
12... Bc5 {[%clk 0:02:17.6]} 13. h5 {[%clk 0:01:19.9]} 13... Bxe3 {[%clk
0:02:10.1]} 14. hxg6 {[%clk 0:01:20.1]} 14... Bxf4 {[%clk 0:02:09.2]} 15. gxf7+
{[%clk 0:01:20.5]} 15... Kxf7 {[%clk 0:02:07]} 16. Bc4+ {[%clk 0:01:21]} 16...
Ke8 {[%clk 0:01:45.8]} 17. Nf5 {[%clk 0:01:19.5]} 17... Bxe5 {[%clk 0:01:39]}
18. Re1 {[%clk 0:01:15.6]} 18... Kd8 {[%clk 0:01:39.4]} 19. c3 {[%clk
0:01:12.6]} 19... g6 {[%clk 0:01:36]} 20. Nh6 {[%clk 0:01:03.4]} 20... Kc7
{[%clk 0:01:28.2]} 21. Kc2 {[%clk 0:00:54.2]} 21... a5 {[%clk 0:01:24.1]} 22.
Rad1 {[%clk 0:00:54]} 22... b5 {[%clk 0:01:23.7]} 23. Be6 {[%clk 0:00:51.4]}
23... Bd6 {[%clk 0:01:02.4]} 24. Nf7 {[%clk 0:00:34.9]} 1-0

[Event "Late-Titled-Tuesday-Blitz-September-26-2023"]
[Site "Chess.com"]
[Date "2023.09.26"]
[Round "6"]
[White "Lennis93"]
[Black "pedromartinez91"]
[Result "0-1"]
[WhiteElo "2710"]
[BlackElo "2560"]
[TimeControl "180+1"]
[EndTime "15:02:48 PDT"]
[Termination "pedromartinez91 won by resignation"]

1. Nf3 {[%clk 0:03:00.9]} 1... b6 {[%clk 0:02:57.7]} 2. e4 {[%clk 0:03:00.8]}
2... Bb7 {[%clk 0:02:57.7]} 3. Nc3 {[%clk 0:03:00.7]} 3... e6 {[%clk 0:02:58.1]}
4. a3 {[%clk 0:03:00.2]} 4... Nf6 {[%clk 0:02:57]} 5. e5 {[%clk 0:03:00.4]} 5...
Ne4 {[%clk 0:02:57]} 6. Bd3 {[%clk 0:02:57.8]} 6... d5 {[%clk 0:02:55.4]} 7.
exd6 {[%clk 0:02:56.2]} 7... Nxd6 {[%clk 0:02:48.9]} 8. O-O {[%clk 0:02:55.4]}
8... Nd7 {[%clk 0:02:48.9]} 9. Re1 {[%clk 0:02:54.7]} 9... Be7 {[%clk
0:02:48.6]} 10. b3 {[%clk 0:02:48.1]} 10... O-O {[%clk 0:02:41.4]} 11. Bb2
{[%clk 0:02:48.3]} 11... Bf6 {[%clk 0:02:41]} 12. Qc1 {[%clk 0:02:46.6]} 12...
Bxf3 {[%clk 0:02:37.3]} 13. gxf3 {[%clk 0:02:47.5]} 13... Ne5 {[%clk 0:02:35.1]}
14. Be2 {[%clk 0:02:43]} 14... Ng6 {[%clk 0:02:34.8]} 15. Kh1 {[%clk 0:02:42.4]}
15... Be5 {[%clk 0:02:33]} 16. Rg1 {[%clk 0:02:40.9]} 16... Qh4 {[%clk
0:02:31.6]} 17. Rg3 {[%clk 0:02:39.6]} 17... Nf5 {[%clk 0:02:29.2]} 18. Qg1
{[%clk 0:02:36.2]} 18... Nxg3+ {[%clk 0:02:18.9]} 19. fxg3 {[%clk 0:02:37.1]}
19... Qd8 {[%clk 0:02:16.2]} 20. Bd3 {[%clk 0:02:28.4]} 20... Bd4 {[%clk
0:02:14.5]} 21. Qg2 {[%clk 0:02:28.1]} 21... Ne5 {[%clk 0:02:14.1]} 22. Be2
{[%clk 0:02:26]} 22... c5 {[%clk 0:02:10.2]} 23. f4 {[%clk 0:02:26.2]} 23... Nd7
{[%clk 0:02:10.4]} 24. g4 {[%clk 0:02:24.8]} 24... Nf6 {[%clk 0:02:02.4]} 25.
Bf3 {[%clk 0:02:25]} 25... Rc8 {[%clk 0:02:01.7]} 26. Re1 {[%clk 0:02:21.3]}
26... Nd5 {[%clk 0:01:52.6]} 27. Nxd5 {[%clk 0:02:12.4]} 27... exd5 {[%clk
0:01:52.7]} 28. c3 {[%clk 0:02:08]} 28... Bf6 {[%clk 0:01:52]} 29. g5 {[%clk
0:02:08.4]} 29... Be7 {[%clk 0:01:46.4]} 30. Bxd5 {[%clk 0:02:09]} 30... Qd7
{[%clk 0:01:31.1]} 31. c4 {[%clk 0:02:08.6]} 31... Rce8 {[%clk 0:01:28.4]} 32.
Rg1 {[%clk 0:01:51.9]} 32... Qf5 {[%clk 0:01:10.5]} 33. Qf3 {[%clk 0:01:48.3]}
33... Bd6 {[%clk 0:01:07.6]} 34. Rf1 {[%clk 0:01:45]} 34... Re7 {[%clk
0:00:58.4]} 35. d3 {[%clk 0:01:42]} 35... Rfe8 {[%clk 0:00:57.8]} 36. Be4 {[%clk
0:01:40.6]} 36... Rxe4 {[%clk 0:00:57.9]} 37. dxe4 {[%clk 0:01:40.8]} 37... Rxe4
{[%clk 0:00:48.6]} 38. Rd1 {[%clk 0:01:39.5]} 38... Qe6 {[%clk 0:00:30.6]} 39.
Rxd6 {[%clk 0:01:39.4]} 39... Re1+ {[%clk 0:00:29]} 40. Kg2 {[%clk 0:01:39.5]}
40... Qxd6 {[%clk 0:00:29.4]} 41. Be5 {[%clk 0:01:31]} 41... Qd2+ {[%clk
0:00:20.8]} 42. Kg3 {[%clk 0:01:30.5]} 42... Re3 {[%clk 0:00:21]} 0-1

[Event "Late-Titled-Tuesday-Blitz-September-26-2023"]
[Site "Chess.com"]
[Date "2023.09.26"]
[Round "6"]
[White "Njal28"]
[Black "Bauman_Guy"]
[Result "1-0"]
[WhiteElo "3087"]
[BlackElo "2864"]
[TimeControl "180+1"]
[EndTime "15:02:51 PDT"]
[Termination "Njal28 won by checkmate"]

1. d4 {[%clk 0:03:00.9]} 1... Nf6 {[%clk 0:02:59.8]} 2. c4 {[%clk 0:03:01.7]}
2... e6 {[%clk 0:02:59.8]} 3. Nc3 {[%clk 0:03:02.5]} 3... Bb4 {[%clk 0:03:00.2]}
4. e3 {[%clk 0:03:03.2]} 4... O-O {[%clk 0:03:00.4]} 5. a3 {[%clk 0:03:04]} 5...
Bxc3+ {[%clk 0:03:00.3]} 6. bxc3 {[%clk 0:03:04.9]} 6... c5 {[%clk 0:03:00.9]}
7. Ne2 {[%clk 0:03:05.8]} 7... b6 {[%clk 0:03:00.8]} 8. Ng3 {[%clk 0:03:06.5]}
8... Ba6 {[%clk 0:02:57.6]} 9. e4 {[%clk 0:03:06.3]} 9... Ne8 {[%clk 0:02:57.9]}
10. d5 {[%clk 0:03:04.5]} 10... Nd6 {[%clk 0:02:51.8]} 11. Nh5 {[%clk 0:03:03]}
11... f5 {[%clk 0:02:45.5]} 12. e5 {[%clk 0:02:26.4]} 12... Nxc4 {[%clk
0:02:38.2]} 13. Bf4 {[%clk 0:02:26.7]} 13... Nb2 {[%clk 0:02:11.5]} 14. Qf3
{[%clk 0:02:23.8]} 14... Bxf1 {[%clk 0:01:57.9]} 15. Kxf1 {[%clk 0:02:24.7]}
15... Qe8 {[%clk 0:01:20.6]} 16. h4 {[%clk 0:02:21.9]} 16... Nd3 {[%clk
0:00:59.1]} 17. Nxg7 {[%clk 0:02:18]} 17... Kxg7 {[%clk 0:00:59.4]} 18. Qxd3
{[%clk 0:02:17.3]} 18... exd5 {[%clk 0:00:55.6]} 19. Rh3 {[%clk 0:02:17.8]}
19... Nc6 {[%clk 0:00:53.7]} 20. Qxd5 {[%clk 0:02:17.2]} 20... Qe6 {[%clk
0:00:50.9]} 21. Qd2 {[%clk 0:02:16.4]} 21... Kf7 {[%clk 0:00:45.2]} 22. Rd1
{[%clk 0:02:14.6]} 22... Rad8 {[%clk 0:00:44.8]} 23. Bg5 {[%clk 0:02:14.4]}
23... Nxe5 {[%clk 0:00:38.2]} 24. Bxd8 {[%clk 0:02:14.4]} 24... Rxd8 {[%clk
0:00:39.1]} 25. Qg5 {[%clk 0:02:14.5]} 25... Qf6 {[%clk 0:00:34.2]} 26. Qh5+
{[%clk 0:02:10.1]} 26... Qg6 {[%clk 0:00:32.7]} 27. Qe2 {[%clk 0:02:10.4]} 27...
d6 {[%clk 0:00:25.5]} 28. Re3 {[%clk 0:02:11]} 28... Qf6 {[%clk 0:00:16.4]} 29.
Qh5+ {[%clk 0:02:10.4]} 29... Qg6 {[%clk 0:00:16.3]} 30. Qe2 {[%clk 0:02:07.5]}
30... Qf6 {[%clk 0:00:16.6]} 31. Qa2+ {[%clk 0:01:50.4]} 31... Kg7 {[%clk
0:00:16.5]} 32. Qd5 {[%clk 0:01:51.1]} 32... Ng4 {[%clk 0:00:14.7]} 33. Re6
{[%clk 0:01:43.5]} 33... Qxh4 {[%clk 0:00:14.6]} 34. g3 {[%clk 0:01:43.9]} 34...
Qh2 {[%clk 0:00:13.2]} 35. Qxf5 {[%clk 0:01:30.5]} 35... Qh3+ {[%clk 0:00:05.2]}
36. Ke2 {[%clk 0:01:26]} 36... Rf8 {[%clk 0:00:06.1]} 37. Re7+ {[%clk
0:01:26.3]} 37... Kh8 {[%clk 0:00:06.8]} 38. Qxf8# {[%clk 0:01:26.3]} 1-0

[Event "Late-Titled-Tuesday-Blitz-September-26-2023"]
[Site "Chess.com"]
[Date "2023.09.26"]
[Round "6"]
[White "chesselephant"]
[Black "sofaceindisguise"]
[Result "0-1"]
[WhiteElo "2526"]
[BlackElo "2707"]
[TimeControl "180+1"]
[EndTime "15:02:59 PDT"]
[Termination "sofaceindisguise won by resignation"]

1. d4 {[%clk 0:02:57]} 1... Nf6 {[%clk 0:03:00.1]} 2. c4 {[%clk 0:02:56.2]} 2...
e6 {[%clk 0:03:00.3]} 3. Nc3 {[%clk 0:02:56.5]} 3... d5 {[%clk 0:03:00.8]} 4.
cxd5 {[%clk 0:02:56.7]} 4... exd5 {[%clk 0:03:01]} 5. Bg5 {[%clk 0:02:57]} 5...
c6 {[%clk 0:02:59.8]} 6. e3 {[%clk 0:02:57.2]} 6... Bf5 {[%clk 0:02:59.8]} 7.
Nge2 {[%clk 0:02:52.2]} 7... Nbd7 {[%clk 0:02:57.5]} 8. Ng3 {[%clk 0:02:43.5]}
8... Bg6 {[%clk 0:02:56.6]} 9. f4 {[%clk 0:02:36]} 9... h6 {[%clk 0:02:47]} 10.
Bh4 {[%clk 0:02:30.4]} 10... Qb6 {[%clk 0:02:44.5]} 11. Qb3 {[%clk 0:02:20.1]}
11... Qxb3 {[%clk 0:02:44.2]} 12. axb3 {[%clk 0:02:21]} 12... Bc2 {[%clk
0:02:44.4]} 13. Kd2 {[%clk 0:02:02.2]} 13... Bxb3 {[%clk 0:02:44.7]} 14. Bd3
{[%clk 0:01:58.5]} 14... Bb4 {[%clk 0:02:42.3]} 15. Nf5 {[%clk 0:01:53.9]} 15...
g6 {[%clk 0:02:40.7]} 16. Ng3 {[%clk 0:01:50]} 16... a5 {[%clk 0:02:35.5]} 17.
Ne2 {[%clk 0:01:44.6]} 17... Ne4+ {[%clk 0:02:33.5]} 18. Bxe4 {[%clk 0:01:37.9]}
18... dxe4 {[%clk 0:02:34.4]} 19. g4 {[%clk 0:01:34.3]} 19... Nb6 {[%clk
0:02:30.6]} 20. Ke1 {[%clk 0:01:30.3]} 20... f5 {[%clk 0:02:29.5]} 21. gxf5
{[%clk 0:01:29]} 21... gxf5 {[%clk 0:02:30.4]} 22. Kf2 {[%clk 0:01:29]} 22...
Kf7 {[%clk 0:02:28.5]} 23. Rhg1 {[%clk 0:01:24.4]} 23... a4 {[%clk 0:02:27.9]}
24. Ng3 {[%clk 0:01:23.1]} 24... Be6 {[%clk 0:02:24.6]} 25. Nce2 {[%clk
0:01:19]} 25... Nd5 {[%clk 0:02:22.8]} 26. Nh5 {[%clk 0:01:18.3]} 26... Rhg8
{[%clk 0:02:20.4]} 27. Rxg8 {[%clk 0:01:17.7]} 27... Kxg8 {[%clk 0:02:13.6]} 28.
Rg1+ {[%clk 0:01:17.8]} 28... Kf8 {[%clk 0:02:14]} 29. Rg6 {[%clk 0:00:44]}
29... Bf7 {[%clk 0:02:12.2]} 30. Rxh6 {[%clk 0:00:43.3]} 30... Ra5 {[%clk
0:02:01.8]} 31. Rh8+ {[%clk 0:00:35.5]} 31... Bg8 {[%clk 0:02:01.9]} 32. Nf6
{[%clk 0:00:22.6]} 32... Nxf6 {[%clk 0:01:54.9]} 33. Bxf6 {[%clk 0:00:23.5]}
33... Rb5 {[%clk 0:01:52.4]} 34. h4 {[%clk 0:00:21.8]} 34... Kf7 {[%clk
0:01:43.7]} 35. Be5 {[%clk 0:00:21.1]} 35... Bf8 {[%clk 0:01:42.5]} 36. Ng3
{[%clk 0:00:19.1]} 36... Rxb2+ {[%clk 0:01:42.1]} 37. Kf1 {[%clk 0:00:18.3]}
37... Bg7 {[%clk 0:01:42.3]} 38. Rh5 {[%clk 0:00:13.1]} 38... Bxe5 {[%clk
0:01:41.3]} 39. fxe5 {[%clk 0:00:12.2]} 39... a3 {[%clk 0:01:36]} 40. Rxf5+
{[%clk 0:00:12.6]} 40... Ke7 {[%clk 0:01:36.3]} 41. e6 {[%clk 0:00:10.2]} 41...
a2 {[%clk 0:01:36.4]} 42. Ra5 {[%clk 0:00:10.7]} 42... Rb1+ {[%clk 0:01:36.3]}
43. Kf2 {[%clk 0:00:11.5]} 43... a1=Q {[%clk 0:01:37.2]} 44. Rxa1 {[%clk
0:00:12]} 44... Rxa1 {[%clk 0:01:38.1]} 45. Nxe4 {[%clk 0:00:12.6]} 45... Bxe6
{[%clk 0:01:38.5]} 0-1

[Event "Late-Titled-Tuesday-Blitz-September-26-2023"]
[Site "Chess.com"]
[Date "2023.09.26"]
[Round "6"]
[White "koncheto"]
[Black "Willychess95"]
[Result "0-1"]
[WhiteElo "2522"]
[BlackElo "2704"]
[TimeControl "180+1"]
[EndTime "15:03:03 PDT"]
[Termination "Willychess95 won by checkmate"]

1. e4 {[%clk 0:03:00.9]} 1... c5 {[%clk 0:02:58.2]} 2. Nf3 {[%clk 0:03:01]} 2...
d6 {[%clk 0:02:57.9]} 3. d4 {[%clk 0:03:01.4]} 3... cxd4 {[%clk 0:02:58.8]} 4.
Nxd4 {[%clk 0:03:02.3]} 4... Nf6 {[%clk 0:02:58.6]} 5. f3 {[%clk 0:03:02.9]}
5... g6 {[%clk 0:02:56.9]} 6. c4 {[%clk 0:03:03.2]} 6... Bg7 {[%clk 0:02:53.8]}
7. Nc3 {[%clk 0:03:03.7]} 7... O-O {[%clk 0:02:53.3]} 8. Be3 {[%clk 0:03:03.5]}
8... Nc6 {[%clk 0:02:53.4]} 9. Nc2 {[%clk 0:03:02.6]} 9... Be6 {[%clk
0:02:47.9]} 10. Be2 {[%clk 0:03:02.5]} 10... a5 {[%clk 0:02:48]} 11. O-O {[%clk
0:03:02.1]} 11... a4 {[%clk 0:02:48.4]} 12. Qd2 {[%clk 0:03:00.7]} 12... Qa5
{[%clk 0:02:47]} 13. Rac1 {[%clk 0:02:54.3]} 13... Rfc8 {[%clk 0:02:43.6]} 14.
Rfd1 {[%clk 0:02:50.1]} 14... Nd7 {[%clk 0:02:35.9]} 15. Na3 {[%clk 0:02:33.1]}
15... Nce5 {[%clk 0:02:03.9]} 16. Nd5 {[%clk 0:02:15.8]} 16... Qxd2 {[%clk
0:01:56.2]} 17. Bxd2 {[%clk 0:02:14.9]} 17... Bxd5 {[%clk 0:01:54.8]} 18. cxd5
{[%clk 0:02:14.8]} 18... Nc5 {[%clk 0:01:51.1]} 19. Bc3 {[%clk 0:02:05.7]} 19...
Ned7 {[%clk 0:01:48.7]} 20. Kf2 {[%clk 0:01:57.9]} 20... Nb6 {[%clk 0:01:30]}
21. Bxg7 {[%clk 0:01:44.9]} 21... Kxg7 {[%clk 0:01:29.8]} 22. Rc3 {[%clk
0:01:37.8]} 22... f5 {[%clk 0:01:22.9]} 23. Ke3 {[%clk 0:01:34.5]} 23... Kf6
{[%clk 0:01:18.5]} 24. Kd4 {[%clk 0:01:29.2]} 24... Nbd7 {[%clk 0:01:16.5]} 25.
Nc4 {[%clk 0:01:23.3]} 25... Rc7 {[%clk 0:01:09.3]} 26. Rdc1 {[%clk 0:01:21.5]}
26... b5 {[%clk 0:01:04.3]} 27. Ne3 {[%clk 0:00:43.3]} 27... b4 {[%clk
0:00:59.8]} 28. Rc4 {[%clk 0:00:43]} 28... Rac8 {[%clk 0:00:52.6]} 29. R1c2
{[%clk 0:00:28.7]} 29... e5+ {[%clk 0:00:48.9]} 30. dxe6 {[%clk 0:00:28.5]}
30... Nxe6+ {[%clk 0:00:49.1]} 31. Kd5 {[%clk 0:00:24.5]} 31... Nb6+ {[%clk
0:00:46.1]} 32. Kxd6 {[%clk 0:00:23.3]} 32... Rd7# {[%clk 0:00:45.5]} 0-1

[Event "Late-Titled-Tuesday-Blitz-September-26-2023"]
[Site "Chess.com"]
[Date "2023.09.26"]
[Round "6"]
[White "vladislavkovalev"]
[Black "Firouzja2003"]
[Result "0-1"]
[WhiteElo "2875"]
[BlackElo "3091"]
[TimeControl "180+1"]
[EndTime "15:03:23 PDT"]
[Termination "Firouzja2003 won by resignation"]

1. e4 {[%clk 0:03:00.9]} 1... c5 {[%clk 0:02:58.7]} 2. Nf3 {[%clk 0:03:01.2]}
2... e6 {[%clk 0:02:57.5]} 3. c3 {[%clk 0:03:01.1]} 3... Nf6 {[%clk 0:02:51.1]}
4. e5 {[%clk 0:03:00.9]} 4... Nd5 {[%clk 0:02:51.9]} 5. d4 {[%clk 0:03:01.6]}
5... cxd4 {[%clk 0:02:50.3]} 6. cxd4 {[%clk 0:03:02.5]} 6... b6 {[%clk
0:02:50.3]} 7. Bd3 {[%clk 0:02:46.7]} 7... Bb7 {[%clk 0:02:39.9]} 8. a3 {[%clk
0:02:46.4]} 8... Be7 {[%clk 0:02:37.7]} 9. O-O {[%clk 0:02:46.2]} 9... O-O
{[%clk 0:02:37.8]} 10. Re1 {[%clk 0:02:44.8]} 10... Na6 {[%clk 0:02:27.7]} 11.
Nbd2 {[%clk 0:02:44.1]} 11... Nac7 {[%clk 0:02:26.6]} 12. Ne4 {[%clk 0:02:41.7]}
12... f5 {[%clk 0:02:25.6]} 13. exf6 {[%clk 0:02:38.4]} 13... Nxf6 {[%clk
0:02:25.9]} 14. Qe2 {[%clk 0:02:27.2]} 14... Nxe4 {[%clk 0:02:20.7]} 15. Bxe4
{[%clk 0:02:28.1]} 15... Bxe4 {[%clk 0:02:20.7]} 16. Qxe4 {[%clk 0:02:29]} 16...
Nd5 {[%clk 0:02:20.9]} 17. Bd2 {[%clk 0:02:01.8]} 17... Bd6 {[%clk 0:02:06.8]}
18. Ng5 {[%clk 0:01:38]} 18... Rf5 {[%clk 0:01:50.5]} 19. h4 {[%clk 0:01:00.2]}
19... h6 {[%clk 0:01:44.1]} 20. g4 {[%clk 0:00:40.7]} 20... Nf6 {[%clk
0:01:41.3]} 21. Qg2 {[%clk 0:00:18.4]} 21... Rd5 {[%clk 0:01:40.4]} 22. Ne4
{[%clk 0:00:13.5]} 22... Nxe4 {[%clk 0:01:39.2]} 23. Rxe4 {[%clk 0:00:13.4]}
23... Rc8 {[%clk 0:01:04.9]} 24. g5 {[%clk 0:00:05.9]} 24... h5 {[%clk
0:01:04.3]} 25. Bc3 {[%clk 0:00:05.1]} 25... Qe8 {[%clk 0:01:03.6]} 26. Rae1
{[%clk 0:00:05.6]} 26... Qg6 {[%clk 0:01:03.1]} 27. R4e2 {[%clk 0:00:03.7]}
27... Rf8 {[%clk 0:01:00.3]} 28. Qe4 {[%clk 0:00:02.6]} 28... Qf7 {[%clk
0:00:55.5]} 29. Kg2 {[%clk 0:00:01.4]} 29... Rf5 {[%clk 0:00:54.5]} 30. Rf1
{[%clk 0:00:01.9]} 30... Rf4 {[%clk 0:00:54.1]} 31. Qd3 {[%clk 0:00:01.3]} 31...
Rg4+ {[%clk 0:00:51.6]} 0-1

[Event "Late-Titled-Tuesday-Blitz-September-26-2023"]
[Site "Chess.com"]
[Date "2023.09.26"]
[Round "6"]
[White "brm72"]
[Black "QuintilianoR"]
[Result "0-1"]
[WhiteElo "2505"]
[BlackElo "2669"]
[TimeControl "180+1"]
[EndTime "15:03:23 PDT"]
[Termination "QuintilianoR won by resignation"]

1. e4 {[%clk 0:03:00.9]} 1... c5 {[%clk 0:02:58.1]} 2. Nf3 {[%clk 0:03:00.9]}
2... d6 {[%clk 0:02:57.8]} 3. d4 {[%clk 0:03:01]} 3... cxd4 {[%clk 0:02:58.7]}
4. Nxd4 {[%clk 0:03:01.8]} 4... Nf6 {[%clk 0:02:58.9]} 5. Nc3 {[%clk 0:03:02.2]}
5... g6 {[%clk 0:02:59.5]} 6. f3 {[%clk 0:03:02.5]} 6... Bg7 {[%clk 0:02:58.9]}
7. Be3 {[%clk 0:03:02.8]} 7... O-O {[%clk 0:02:58.7]} 8. Qd2 {[%clk 0:03:03.2]}
8... Nc6 {[%clk 0:02:58]} 9. O-O-O {[%clk 0:03:03.5]} 9... d5 {[%clk 0:02:57.7]}
10. Qe1 {[%clk 0:03:03.8]} 10... e5 {[%clk 0:02:50.7]} 11. Nxc6 {[%clk
0:03:03.1]} 11... bxc6 {[%clk 0:02:51.6]} 12. exd5 {[%clk 0:03:03.4]} 12... Nxd5
{[%clk 0:02:51.7]} 13. Bc4 {[%clk 0:03:03.7]} 13... Be6 {[%clk 0:02:50.9]} 14.
Kb1 {[%clk 0:03:03]} 14... Re8 {[%clk 0:02:44.8]} 15. Bb3 {[%clk 0:02:30.8]}
15... a5 {[%clk 0:02:32.5]} 16. h4 {[%clk 0:02:23]} 16... h6 {[%clk 0:02:26.9]}
17. h5 {[%clk 0:02:22.1]} 17... g5 {[%clk 0:02:25.8]} 18. g4 {[%clk 0:02:22.1]}
18... Nxc3+ {[%clk 0:01:40.9]} 19. Qxc3 {[%clk 0:02:21.5]} 19... Qc7 {[%clk
0:01:41.8]} 20. Bxe6 {[%clk 0:02:14.2]} 20... Rxe6 {[%clk 0:01:41.2]} 21. Qc4
{[%clk 0:02:12.7]} 21... e4 {[%clk 0:01:40.5]} 22. fxe4 {[%clk 0:02:02.2]} 22...
Rae8 {[%clk 0:01:36]} 23. Bc1 {[%clk 0:01:43.8]} 23... Rxe4 {[%clk 0:01:34.4]}
24. Qc5 {[%clk 0:01:42.3]} 24... Rxg4 {[%clk 0:01:31.8]} 25. Rd6 {[%clk
0:01:35.5]} 25... Rc8 {[%clk 0:01:22.1]} 26. Rhd1 {[%clk 0:01:19.4]} 26... Bf8
{[%clk 0:01:18.7]} 27. Qf5 {[%clk 0:01:19.2]} 27... Bxd6 {[%clk 0:00:32.3]} 28.
Rxd6 {[%clk 0:01:11.3]} 28... Rg1 {[%clk 0:00:22.6]} 29. Rd7 {[%clk 0:01:09.4]}
29... Qf4 {[%clk 0:00:22.3]} 30. Qxf4 {[%clk 0:00:37.3]} 30... gxf4 {[%clk
0:00:23.2]} 31. Rd4 {[%clk 0:00:37.5]} 31... Re8 {[%clk 0:00:22.5]} 0-1

[Event "Late-Titled-Tuesday-Blitz-September-26-2023"]
[Site "Chess.com"]
[Date "2023.09.26"]
[Round "6"]
[White "Pedrada88"]
[Black "Beca95"]
[Result "0-1"]
[WhiteElo "2562"]
[BlackElo "2930"]
[TimeControl "180+1"]
[EndTime "15:03:24 PDT"]
[Termination "Beca95 won by resignation"]

1. d4 {[%clk 0:03:00.9]} 1... Nf6 {[%clk 0:02:59.1]} 2. Nf3 {[%clk 0:03:01]}
2... c5 {[%clk 0:02:59.2]} 3. c3 {[%clk 0:02:58.7]} 3... e6 {[%clk 0:02:58.6]}
4. Bg5 {[%clk 0:02:58]} 4... h6 {[%clk 0:02:57.3]} 5. Bh4 {[%clk 0:02:56.3]}
5... d5 {[%clk 0:02:56.8]} 6. e3 {[%clk 0:02:52.3]} 6... Nbd7 {[%clk 0:02:57.2]}
7. Nbd2 {[%clk 0:02:52.2]} 7... Qc7 {[%clk 0:02:57.1]} 8. Bd3 {[%clk 0:02:51.5]}
8... b6 {[%clk 0:02:56.5]} 9. O-O {[%clk 0:02:48.6]} 9... Bb7 {[%clk 0:02:56.6]}
10. a4 {[%clk 0:02:47.1]} 10... Bd6 {[%clk 0:02:52.7]} 11. a5 {[%clk 0:02:44.9]}
11... O-O {[%clk 0:02:51.4]} 12. Qe2 {[%clk 0:02:21.4]} 12... Ne4 {[%clk
0:02:45.7]} 13. Bg3 {[%clk 0:02:01.7]} 13... Nxg3 {[%clk 0:02:44.2]} 14. hxg3
{[%clk 0:02:02.6]} 14... c4 {[%clk 0:02:43.5]} 15. Bc2 {[%clk 0:02:01]} 15... f5
{[%clk 0:02:44]} 16. Nh4 {[%clk 0:01:52.3]} 16... g5 {[%clk 0:02:42.6]} 17. Qh5
{[%clk 0:01:51.2]} 17... Nf6 {[%clk 0:02:37.2]} 18. Qg6+ {[%clk 0:01:14.1]}
18... Qg7 {[%clk 0:02:36]} 19. Bxf5 {[%clk 0:01:11.9]} 19... gxh4 {[%clk
0:02:32.2]} 20. Bxe6+ {[%clk 0:01:07]} 20... Kh8 {[%clk 0:02:32.3]} 21. Qxg7+
{[%clk 0:01:02.1]} 21... Kxg7 {[%clk 0:02:33.2]} 22. gxh4 {[%clk 0:01:02.5]}
22... b5 {[%clk 0:02:32.8]} 23. a6 {[%clk 0:01:00.3]} 23... Bc8 {[%clk
0:02:32.1]} 24. Bxc8 {[%clk 0:00:57.5]} 24... Raxc8 {[%clk 0:02:33]} 25. Ra5
{[%clk 0:00:50.3]} 25... Rb8 {[%clk 0:02:32.6]} 26. b3 {[%clk 0:00:49.9]} 26...
Bc7 {[%clk 0:02:32.7]} 27. Ra2 {[%clk 0:00:48.3]} 27... Rb6 {[%clk 0:02:27.2]}
28. Rb1 {[%clk 0:00:47.1]} 28... Kf7 {[%clk 0:02:24.1]} 29. bxc4 {[%clk
0:00:40.4]} 29... bxc4 {[%clk 0:02:23.1]} 30. Rxb6 {[%clk 0:00:39.4]} 30... Bxb6
{[%clk 0:02:23.8]} 31. Rb2 {[%clk 0:00:39]} 31... Ke6 {[%clk 0:02:22.2]} 32. f3
{[%clk 0:00:31.1]} 32... Kd6 {[%clk 0:02:21.6]} 33. e4 {[%clk 0:00:29.9]} 33...
Kc6 {[%clk 0:02:21.2]} 34. exd5+ {[%clk 0:00:23.5]} 34... Nxd5 {[%clk
0:01:55.8]} 35. Nxc4 {[%clk 0:00:22.9]} 35... Re8 {[%clk 0:01:55.1]} 36. Ne5+
{[%clk 0:00:19.5]} 36... Rxe5 {[%clk 0:01:53.8]} 37. Rxb6+ {[%clk 0:00:17.6]}
37... Kxb6 {[%clk 0:01:51.4]} 38. dxe5 {[%clk 0:00:18.5]} 38... Kxa6 {[%clk
0:01:51.7]} 39. c4 {[%clk 0:00:17.4]} 39... Ne7 {[%clk 0:01:49.5]} 40. g4 {[%clk
0:00:17.6]} 40... Kb6 {[%clk 0:01:49.2]} 41. g5 {[%clk 0:00:17.3]} 41... hxg5
{[%clk 0:01:49.2]} 42. h5 {[%clk 0:00:17.9]} 42... Nf5 {[%clk 0:01:48.2]} 43. e6
{[%clk 0:00:17]} 43... Kc7 {[%clk 0:01:42.1]} 44. c5 {[%clk 0:00:14.9]} 44... a5
{[%clk 0:01:42.2]} 45. c6 {[%clk 0:00:11.3]} 45... Kxc6 {[%clk 0:01:39.6]} 46.
f4 {[%clk 0:00:10.7]} 46... gxf4 {[%clk 0:01:38]} 47. Kf2 {[%clk 0:00:11.3]}
47... a4 {[%clk 0:01:37.6]} 48. Kf3 {[%clk 0:00:11.8]} 48... a3 {[%clk 0:01:38]}
49. Kxf4 {[%clk 0:00:12.4]} 49... Ne7 {[%clk 0:01:35.8]} 50. h6 {[%clk
0:00:05.1]} 50... a2 {[%clk 0:01:35.7]} 51. Kg5 {[%clk 0:00:05.7]} 51... a1=Q
{[%clk 0:01:35.4]} 52. h7 {[%clk 0:00:06]} 52... Qg7+ {[%clk 0:01:33.3]} 0-1